bitfinex-derivatives/quotes_SOLF0:USTF0_20240926
["timestamp","ask_amount","ask_price","bid_price","bid_amount"]
[1727368090778,15.26,157.34,157.26,15.26]
[1727368090976,15.26,157.36,157.28,15.26]
[1727368091181,3.1772,157.35,157.32,3.1775]
[1727368091778,3.1772,157.35,157.33,3.1775]
[1727368092081,18.437,157.36,157.28,15.26]
[1727368092284,3.177,157.36,157.34,3.1773]
[1727368092482,15.26,157.38,157.3,18.50347069]
[1727368092682,15.26,157.38,157.3,15.26]
[1727368092884,15.26,157.38,157.3,18.44412967]
[1727368093076,3.1767,157.37,157.3,18.44412967]
[1727368093482,1.3724,157.42,157.3,18.44412967]
[1727368093483,16.6324,157.42,157.33,15.26]
[1727368093873,3.1763,157.39,157.33,18.49435354]
[1727368094081,16.6324,157.42,157.37,3.1766]
[1727368094481,3.1763,157.4,157.37,3.1766]
[1727368096682,16.6324,157.42,157.37,3.1766]
[1727368097193,3.1762,157.4,157.37,3.1766]
[1727368097489,16.6324,157.42,157.33,15.26]
[1727368097884,16.6324,157.42,157.37,3.1766]
[1727368098380,16.6324,157.42,157.36,3.1769]
[1727368098584,16.6324,157.42,157.33,15.26]
[1727368099097,3.1762,157.4,157.37,3.1766]
[1727368099597,3.1762,157.4,157.38,3.1765]
[1727368100305,3.1762,157.4,157.33,15.26]
[1727368100690,16.6324,157.42,157.35,3.1769]
[1727368100889,16.6324,157.42,157.32,4.49285602]
[1727368101290,3.1764,157.39,157.36,3.1768]
[1727368102983,16.6324,157.42,157.33,15.26]
[1727368102984,1.3724,157.42,157.33,15.26]
[1727368103185,3.1169016,157.43,157.35,15.26]
[1727368103417,15.26,157.44,157.35,15.26]
[1727368103585,3.176,157.41,157.35,15.26]
[1727368104295,3.12663918,157.43,157.39,3.1761]
[1727368104296,3.1758,157.42,157.39,3.1761]
[1727368104497,15.26,157.44,157.35,15.26]
[1727368104788,15.26,157.44,157.32,10.84805602]
[1727368104789,17.9848,157.47,157.37,15.26]
[1727368105191,3.1753,157.44,157.37,15.26]
[1727368105391,17.9848,157.47,157.37,15.26]
[1727368105799,3.1754,157.44,157.41,3.1757]
[1727368106200,2.7248,157.47,157.41,3.1757]
[1727368106399,15.26,157.46,157.41,3.1757]
[1727368106593,15.26,157.46,157.37,15.26]
[1727368106806,15.26,157.46,157.35,15.26]
[1727368107190,3.1758,157.42,157.39,3.1761]
[1727368107397,15.26,157.44,157.34,15.26]
[1727368107700,15.26,157.44,157.38,3.1765]
[1727368107701,3.1761,157.41,157.38,3.1765]
[1727368107903,15.26,157.44,157.38,3.1765]
[1727368108302,3.1761,157.4,157.37,3.1767]
[1727368108497,15.26,157.44,157.34,15.26]
[1727368108799,3.1759,157.41,157.38,3.1764]
[1727368109393,3.1759,157.42,157.39,3.1761]
[1727368109594,15.26,157.44,157.39,3.1761]
[1727368110306,3.176,157.41,157.39,3.1761]
[1727368110596,15.26,157.44,157.32,10.84805602]
[1727368110597,3.1753,157.44,157.37,15.26]
[1727368110907,15.26,157.46,157.33,6.3549]
[1727368110908,2.7248,157.47,157.39,15.26]
[1727368111098,2.7248,157.47,157.42,3.1756]
[1727368111399,15.26,157.46,157.37,15.26]
[1727368111601,15.26,157.46,157.4,3.176]
[1727368111795,3.1756,157.43,157.4,3.176]
[1727368112397,15.26,157.44,157.4,3.176]
[1727368112592,3.12540244,157.51,157.41,15.26]
[1727368112791,28.6484,157.57,157.42,2.6503]
[1727368112792,3.8678,157.56,157.42,2.6503]
[1727368112994,3.1746,157.48,157.43,15.26]
[1727368113397,3.1746,157.48,157.45,3.1749]
[1727368115602,15.26,157.51,157.45,3.1749]
[1727368115603,3.1747,157.47,157.45,3.1749]
[1727368116198,15.26,157.51,157.42,2.6503]
[1727368116492,18.44591752,157.52,157.42,17.9103]
[1727368116696,3.1743,157.49,157.42,17.9103]
[1727368116998,15.26,157.55,157.44,15.26]
[1727368117208,3.174,157.51,157.44,15.26]
[1727368117400,15.26,157.55,157.48,3.1744]
[1727368118298,15.26,157.55,157.49,3.1743]
[1727368118499,3.1738,157.52,157.49,3.1743]
[1727368118897,7.07491254,157.56,157.47,15.26]
[1727368118898,1.3164,157.56,157.47,15.26]
[1727368119098,3.1734,157.54,157.48,1.2944]
[1727368119300,3.1734,157.54,157.51,3.1737]
[1727368119695,15.26,157.58,157.48,1.2944]
[1727368119895,3.15017659,157.57,157.51,3.1737]
[1727368120094,15.26,157.57,157.51,3.1737]
[1727368120304,3.1734,157.54,157.51,3.1737]
[1727368121704,3.1735,157.53,157.51,3.1737]
[1727368122603,3.1733,157.54,157.51,3.1739]
[1727368123000,18.40957637,157.58,157.5,3.174]
[1727368123001,3.1735,157.53,157.5,3.174]
[1727368123912,3.1738,157.52,157.48,2.6712]
[1727368124308,3.1738,157.52,157.49,3.1741]
[1727368124505,3.1738,157.52,157.48,2.6712]
[1727368125907,3.1738,157.52,157.5,3.1741]
[1727368126718,3.1738,157.52,157.49,3.1742]
[1727368126913,15.26,157.55,157.48,2.6712]
[1727368127114,15.26,157.53,157.44,15.26]
[1727368127427,3.1742,157.5,157.47,3.1746]
[1727368127720,3.1742,157.5,157.44,16.506]
[1727368128115,3.1739,157.51,157.48,3.1744]
[1727368128513,15.26,157.53,157.44,16.506]
[1727368128514,18.39973394,157.55,157.44,16.506]
[1727368128725,3.1739,157.51,157.49,3.1742]
[1727368129920,3.1739,157.51,157.48,3.1744]
[1727368130561,3.1739,157.51,157.44,16.506]
[1727368131418,3.1739,157.51,157.48,3.1743]
[1727368131825,3.1741,157.5,157.44,16.506]
[1727368132021,3.1741,157.5,157.47,3.1745]
[1727368132721,15.26,157.54,157.46,3.1748]
[1727368132921,15.26,157.52,157.44,1.246]
[1727368133123,15.26,157.49,157.41,1.3409]
[1727368133420,15.26,157.47,157.38,15.26]
[1727368133622,15.26,157.5,157.4,15.26]
[1727368133829,18.42322762,157.5,157.4,15.26]
[1727368134426,3.1749,157.46,157.43,9.75]
[1727368134921,3.1748,157.47,157.44,3.1751]
[1727368135745,9.75,157.48,157.44,3.1751]
[1727368136421,15.24,157.5,157.44,3.1751]
[1727368137432,3.1748,157.47,157.44,3.1751]
[1727368138022,15.24,157.5,157.45,3.175]
[1727368138326,2.6171,157.54,157.45,15.24]
[1727368138528,1.2837,157.54,157.49,3.1742]
[1727368138724,1.2837,157.54,157.45,15.24]
[1727368139125,16.5237,157.54,157.45,15.24]
[1727368139631,16.5061,157.55,157.45,15.24]
[1727368140134,3.1739,157.51,157.48,3.1743]
[1727368140630,3.1739,157.51,157.41,3.22013094]
[1727368140631,15.24,157.53,157.43,15.24]
[1727368140827,1.2661,157.55,157.43,15.24]
[1727368141018,3.1741,157.5,157.46,3.1747]
[1727368141220,15.24,157.53,157.43,15.24]
[1727368141523,3.1742,157.5,157.43,15.24]
[1727368141717,3.1742,157.5,157.47,3.1746]
[1727368141928,16.5061,157.55,157.45,15.24]
[1727368142327,3.1739,157.52,157.48,3.1745]
[1727368142535,3.1739,157.52,157.45,15.24]
[1727368142924,3.1739,157.52,157.45,17.7749]
[1727368143530,3.1736,157.53,157.45,17.7749]
[1727368143726,16.5061,157.55,157.45,19.1199]
[1727368144028,16.5061,157.55,157.49,3.1742]
[1727368144029,3.1738,157.52,157.49,3.1742]
[1727368144230,3.1738,157.52,157.45,19.1199]
[1727368144623,3.1738,157.52,157.49,3.1741]
[1727368145431,3.1735,157.53,157.5,3.1739]
[1727368146049,1.2661,157.55,157.47,15.24]
[1727368146644,1.2661,157.55,157.45,19.1199]
[1727368146849,16.5061,157.55,157.45,19.1199]
[1727368147240,3.1739,157.52,157.48,3.1743]
[1727368147440,3.1739,157.52,157.45,19.1199]
[1727368147639,16.5061,157.55,157.45,19.1199]
[1727368147841,1.2661,157.55,157.45,3.8799]
[1727368148147,15.24,157.52,157.45,3.8799]
[1727368148348,3.1744,157.49,157.46,3.1748]
[1727368148646,15.24,157.54,157.45,3.8799]
[1727368149046,3.174,157.51,157.49,3.1743]
[1727368149745,3.1738,157.52,157.49,3.1743]
[1727368150046,3.1738,157.52,157.5,3.174]
[1727368150436,3.174,157.51,157.48,3.1744]
[1727368150841,15.24,157.54,157.45,2.5349]
[1727368151142,15.24,157.54,157.47,3.1746]
[1727368151446,15.24,157.54,157.41,1.277]
[1727368151447,3.1743,157.49,157.41,16.517]
[1727368151644,3.1743,157.49,157.46,3.1748]
[1727368151947,3.1743,157.49,157.42,3.16617004]
[1727368152450,15.24,157.51,157.42,3.16617004]
[1727368152642,15.24,157.51,157.41,16.517]
[1727368152842,15.24,157.53,157.43,15.24]
[1727368153051,15.24,157.53,157.5,3.174]
[1727368153052,3.1736,157.53,157.5,3.174]
[1727368153341,16.5061,157.55,157.5,3.174]
[1727368153542,3.1737,157.52,157.49,3.1742]
[1727368154848,15.24,157.56,157.48,15.24]
[1727368155246,3.1736,157.53,157.5,3.174]
[1727368155570,3.1736,157.53,157.48,15.24]
[1727368155745,15.24,157.56,157.48,15.24]
[1727368155746,3.1734,157.54,157.48,15.24]
[1727368157656,3.1734,157.54,157.51,3.1737]
[1727368158651,15.24,157.56,157.52,3.1736]
[1727368158854,15.24,157.56,157.48,15.24]
[1727368160045,3.1733,157.55,157.48,15.24]
[1727368160452,12.9333,157.55,157.5,9.76]
[1727368160648,12.9333,157.55,157.52,3.1736]
[1727368162453,3.1729,157.56,157.51,9.76]
[1727368162645,3.1729,157.56,157.53,9.76]
[1727368162864,1.3618,157.58,157.45,6.3502]
[1727368163156,3.1734,157.54,157.51,3.1737]
[1727368163558,12.9331,157.55,157.52,3.1735]
[1727368164051,3.1731,157.55,157.52,3.1735]
[1727368164254,3.1731,157.55,157.53,3.1734]
[1727368164445,9.76,157.56,157.45,6.3502]
[1727368164645,9.76,157.56,157.44,2.542]
[1727368164646,9.76,157.53,157.5,3.1739]
[1727368164854,9.76,157.53,157.48,9.76]
[1727368165254,1.3618,157.58,157.5,9.76]
[1727368165445,9.76,157.55,157.5,9.76]
[1727368165860,9.76,157.54,157.5,9.76]
[1727368166054,9.76,157.54,157.49,9.76]
[1727368166352,3.1738,157.52,157.49,12.9342]
[1727368166560,9.76,157.54,157.5,9.76]
[1727368167062,3.1736,157.53,157.5,9.76]
[1727368167660,3.1734,157.54,157.51,3.1738]
[1727368167861,1.3618,157.58,157.51,9.76]
[1727368168086,9.76,157.57,157.53,3.1734]
[1727368168568,3.1732,157.55,157.52,3.1735]
[1727368169259,9.76,157.56,157.52,9.76]
[1727368169461,9.76,157.57,157.52,9.76]
[1727368169758,12.9328,157.57,157.54,3.1731]
[1727368170168,9.76,157.57,157.54,3.1731]
[1727368171765,2.601,157.62,157.56,9.76]
[1727368171955,2.601,157.62,157.5,1.305]
[1727368171956,9.76,157.61,157.57,9.76]
[1727368172557,3.1721,157.61,157.58,3.1724]
[1727368172967,3.1721,157.61,157.57,12.9326]
[1727368173355,3.1721,157.6,157.57,3.1726]
[1727368173957,3.1721,157.6,157.56,12.9328]
[1727368174166,3.1724,157.59,157.55,9.76]
[1727368174366,9.76,157.59,157.55,9.76]
[1727368174556,9.76,157.59,157.55,12.933]
[1727368174963,9.76,157.59,157.54,9.76]
[1727368175174,9.76,157.59,157.55,3.173]
[1727368175566,3.1726,157.58,157.55,3.173]
[1727368176156,3.1726,157.58,157.55,12.933]
[1727368177262,9.76,157.6,157.55,9.76]
[1727368177263,3.1727,157.57,157.55,9.76]
[1727368177474,1.2911,157.62,157.51,1.3293]
[1727368177660,9.76,157.55,157.51,1.3293]
[1727368178057,12.9332,157.55,157.52,3.1735]
[1727368178457,3.1729,157.56,157.53,3.1733]
[1727368178661,12.9329,157.56,157.53,3.1733]
[1727368179275,3.1731,157.55,157.52,3.1736]
[1727368179593,9.76,157.56,157.51,11.0893]
[1727368179968,12.933,157.56,157.53,3.1734]
[1727368180175,9.76,157.54,157.46,1.3094]
[1727368180365,9.76,157.54,157.33,15.8868]
[1727368180366,9.76,157.5,157.45,1.2633]
[1727368180668,9.76,157.49,157.45,1.2633]
[1727368181072,3.1746,157.48,157.45,1.2633]
[1727368181572,9.76,157.48,157.45,1.2633]
[1727368181965,9.76,157.5,157.45,1.2633]
[1727368182269,15.24,157.52,157.45,1.2633]
[1727368182462,3.1743,157.49,157.46,3.1748]
[1727368182962,4.63559759,157.55,157.42,1.2486]
[1727368182963,3.175,157.46,157.42,1.2486]
[1727368183472,3.175,157.46,157.39,1.2903]
[1727368183473,3.1749,157.46,157.39,1.2903]
[1727368183670,3.1749,157.46,157.39,16.5303]
[1727368183966,3.1752,157.45,157.41,3.1759]
[1727368184171,15.24,157.46,157.39,1.2903]
[1727368184863,3.1755,157.44,157.39,4.4665]
[1727368185073,3.1755,157.44,157.39,1.2903]
[1727368185567,15.24,157.46,157.39,1.2903]
[1727368185568,3.1751,157.45,157.39,1.2903]
[1727368185963,15.24,157.44,157.39,1.2903]
[1727368186569,18.4154,157.44,157.4,3.1761]
[1727368187360,15.24,157.44,157.41,3.1759]
[1727368187567,15.24,157.44,157.39,1.2903]
[1727368187771,1.3827,157.46,157.33,1.2564]
[1727368187772,15.24,157.42,157.33,1.2564]
[1727368187965,18.4162,157.4,157.36,3.1768]
[1727368188164,15.24,157.42,157.33,1.2564]
[1727368188578,3.1759,157.41,157.38,3.1765]
[1727368189569,3.1759,157.41,157.33,1.2564]
[1727368189570,3.1755,157.43,157.34,15.24]
[1727368189766,15.24,157.44,157.34,15.24]
[1727368190011,18.4154,157.44,157.4,3.176]
[1727368190171,15.24,157.44,157.36,15.24]
[1727368190571,15.24,157.44,157.41,3.1758]
[1727368190771,3.1752,157.45,157.36,15.24]
[1727368190772,16.6227,157.46,157.37,1.3426]
[1727368190970,15.24,157.46,157.38,16.5525]
[1727368191168,18.4149,157.46,157.38,16.5525]
[1727368191572,18.4149,157.46,157.42,3.1756]
[1727368192473,3.1751,157.45,157.42,3.1756]
[1727368192980,15.24,157.46,157.4,3.1759]
[1727368192981,3.1755,157.44,157.4,3.1759]
[1727368193274,15.24,157.44,157.4,3.1759]
[1727368193774,18.4154,157.44,157.41,3.1759]
[1727368195382,3.1755,157.43,157.41,3.1759]
[1727368195574,15.24,157.44,157.38,1.3125]
[1727368195769,3.1759,157.42,157.37,1.3426]
[1727368195974,15.24,157.43,157.33,17.7879]
[1727368196176,15.24,157.43,157.38,3.1764]
[1727368196577,15.24,157.43,157.33,19.1511]
[1727368196980,3.1761,157.41,157.33,19.1511]
[1727368197380,15.24,157.43,157.38,3.1765]
[1727368197588,15.24,157.43,157.33,19.1511]
[1727368197784,3.1685324,157.47,157.33,19.1511]
[1727368197981,15.24,157.43,157.39,3.1762]
[1727368198180,3.1758,157.42,157.39,3.1762]
[1727368198378,15.24,157.43,157.33,19.1511]
[1727368198586,15.24,157.43,157.4,3.1761]
[1727368199177,9.0587,157.5,157.37,15.24]
[1727368199178,15.24,157.45,157.37,15.24]
[1727368199578,3.1754,157.44,157.41,3.1758]
[1727368201186,2.7104,157.5,157.39,15.24]
[1727368201381,15.24,157.49,157.39,15.24]
[1727368201579,15.24,157.49,157.4,3.15900203]
[1727368201778,15.24,157.46,157.37,15.24]
[1727368202485,15.24,157.46,157.33,3.9111]
[1727368202486,15.24,157.44,157.35,15.24]
[1727368202786,15.24,157.42,157.33,3.9111]
[1727368202985,3.176,157.41,157.33,3.9111]
[1727368203377,15.24,157.42,157.33,3.9111]
[1727368204474,15.24,157.44,157.34,15.24]
[1727368204987,3.1756,157.43,157.4,3.176]
[1727368205883,3.1756,157.43,157.39,3.1762]
[1727368206182,2.7104,157.5,157.36,15.24]
[1727368206487,15.24,157.46,157.36,15.24]
[1727368206682,15.24,157.46,157.37,1.3008]
[1727368206884,3.175,157.46,157.38,15.24]
[1727368207086,3.175,157.46,157.39,1.2594]
[1727368207478,3.1748,157.47,157.4,3.17453816]
[1727368207707,15.24,157.48,157.39,2.6358]
[1727368208385,15.24,157.48,157.43,3.1754]
[1727368208582,15.24,157.48,157.4,3.24094578]
[1727368208979,3.1749,157.46,157.43,3.1754]
[1727368209806,15.24,157.46,157.39,2.6358]
[1727368209993,15.24,157.44,157.39,1.2594]
[1727368210395,18.4155,157.44,157.4,3.1759]
[1727368210685,18.4155,157.44,157.39,1.2594]
[1727368210883,18.4155,157.44,157.41,3.1758]
[1727368211083,18.4155,157.44,157.39,1.2594]
[1727368211084,3.1755,157.44,157.39,1.2594]
[1727368211281,15.24,157.46,157.39,1.2594]
[1727368211688,2.7104,157.5,157.39,1.2594]
[1727368211917,15.24,157.49,157.44,3.1752]
[1727368212089,15.24,157.46,157.39,2.5552]
[1727368212292,3.1754,157.44,157.39,2.5552]
[1727368212493,15.24,157.46,157.39,2.5552]
[1727368213294,2.7104,157.5,157.39,2.5552]
[1727368213483,15.24,157.48,157.43,3.1754]
[1727368214188,15.24,157.48,157.42,3.1756]
[1727368214389,3.175,157.46,157.39,2.5552]
[1727368214892,15.24,157.48,157.42,3.1756]
[1727368215086,15.24,157.48,157.39,2.5552]
[1727368215496,3.1752,157.45,157.42,3.1756]
[1727368215882,15.24,157.48,157.39,2.5552]
[1727368216082,1.3335,157.5,157.41,15.24]
[1727368216295,16.5416,157.54,157.43,15.24]
[1727368216495,16.5416,157.54,157.44,1.3288]
[1727368216686,3.1738,157.52,157.49,3.1741]
[1727368217102,3.1738,157.52,157.44,1.3288]
[1727368217285,3.1739,157.51,157.48,3.1744]
[1727368217992,3.1741,157.5,157.47,3.1746]
[1727368218192,15.24,157.52,157.44,1.3288]
[1727368218383,3.174,157.51,157.44,1.3288]
[1727368218584,3.174,157.51,157.48,3.1744]
[1727368219296,3.1741,157.5,157.47,3.1746]
[1727368219686,15.24,157.52,157.45,1.345]
[1727368219889,3.174,157.51,157.48,3.1745]
[1727368220285,15.24,157.52,157.48,3.1745]
[1727368220491,15.24,157.52,157.46,3.1747]
[1727368221302,15.24,157.52,157.45,1.345]
[1727368221901,15.24,157.52,157.46,3.1748]
[1727368222098,3.1753,157.45,157.37,15.24]
[1727368222320,15.24,157.46,157.37,15.24]
[1727368222596,15.24,157.46,157.35,2.7106]
[1727368222597,3.1751,157.45,157.35,2.7106]
[1727368222893,15.24,157.46,157.38,15.24]
[1727368223304,18.4149,157.46,157.38,15.24]
[1727368224487,3.1748,157.47,157.4,15.24]
[1727368224696,15.24,157.48,157.41,3.17145299]
[1727368224896,15.24,157.48,157.45,3.175]
[1727368225094,18.4146,157.48,157.45,3.175]
[1727368225427,15.24,157.5,157.46,3.1747]
[1727368225604,16.5416,157.54,157.44,15.24]
[1727368225992,15.24,157.52,157.47,3.1746]
[1727368226298,3.1742,157.5,157.47,3.1746]
[1727368226602,15.24,157.52,157.44,15.24]
[1727368226795,3.1744,157.49,157.42,1.3417]
[1727368227002,15.24,157.5,157.45,3.175]
[1727368227196,15.24,157.5,157.42,1.3417]
[1727368227530,15.24,157.52,157.43,15.24]
[1727368227705,16.5416,157.54,157.45,15.24]
[1727368228498,15.24,157.52,157.45,15.24]
[1727368229492,3.1739,157.51,157.45,15.24]
[1727368230104,15.24,157.52,157.45,15.24]
[1727368230500,1.3016,157.54,157.45,15.24]
[1727368231009,3.1737,157.53,157.45,15.24]
[1727368231197,1.3016,157.54,157.45,15.24]
[1727368231704,3.1738,157.52,157.49,3.1741]
[1727368232397,4.475,157.54,157.51,3.1738]
[1727368232594,2.6203,157.56,157.47,15.24]
[1727368233101,3.1736,157.53,157.5,3.1739]
[1727368233308,3.1736,157.53,157.47,15.24]
[1727368233606,3.1734,157.54,157.51,3.1737]
[1727368233797,3.1734,157.54,157.47,15.24]
[1727368233994,1.3339,157.58,157.49,15.24]
[1727368234203,1.3339,157.58,157.53,3.1733]
[1727368234204,3.1729,157.56,157.53,3.1733]
[1727368234410,1.3339,157.58,157.5,15.24]
[1727368234595,70.26752622,157.59,157.51,1.3076]
[1727368235293,3.1726,157.58,157.55,3.173]
[1727368236605,70.26752622,157.59,157.52,15.24]
[1727368236803,1.2955,157.62,157.52,15.24]
[1727368236998,1.2955,157.62,157.54,15.24]
[1727368237210,1.3583,157.68,157.6,15.24]
[1727368237428,18.44550441,157.7,157.6,15.24]
[1727368237698,15.24,157.68,157.58,15.24]
[1727368237901,15.24,157.64,157.54,15.24]
[1727368238703,3.1715,157.63,157.54,15.24]
[1727368239995,3.1715,157.63,157.59,3.1721]
[1727368240195,15.24,157.65,157.56,15.24]
[1727368240401,1.2772,157.66,157.56,15.24]
[1727368240603,3.1713,157.65,157.61,3.1717]
[1727368241511,3.1707,157.67,157.6,15.24]
[1727368241703,3.1707,157.67,157.6,17.9139]
[1727368242014,15.24,157.7,157.6,17.9139]
[1727368242206,15.24,157.7,157.61,3.22776074]
[1727368243119,3.1708,157.67,157.61,3.22776074]
[1727368243321,3.1708,157.67,157.6,17.9139]
[1727368243322,15.24,157.69,157.6,17.9139]
[1727368243814,3.171,157.66,157.6,17.9139]
[1727368244113,15.24,157.69,157.6,17.9139]
[1727368244415,3.1712,157.65,157.62,3.1716]
[1727368245117,3.1713,157.64,157.61,3.1718]
[1727368245412,3.1714,157.64,157.6,3.1719]
[1727368245607,3.1714,157.64,157.56,15.24]
[1727368246114,3.1714,157.64,157.6,3.1719]
[1727368246806,15.24,157.64,157.58,3.1723]
[1727368247112,1.3197,157.65,157.56,15.24]
[1727368247436,15.24,157.68,157.6,15.24]
[1727368247809,15.24,157.68,157.62,3.1715]
[1727368247810,3.1712,157.65,157.62,3.1715]
[1727368248005,15.24,157.68,157.62,3.1715]
[1727368248408,3.1712,157.65,157.62,3.1715]
[1727368249112,15.24,157.68,157.62,3.1715]
[1727368249816,16.5597,157.7,157.63,3.1714]
[1727368250117,1.3197,157.7,157.62,15.24]
[1727368250317,1.3197,157.7,157.6,1.3644]
[1727368250318,1.3197,157.7,157.64,15.24]
[1727368250527,15.24,157.74,157.64,15.24]
[1727368250908,3.1702,157.7,157.67,3.1706]
[1727368251809,3.1704,157.69,157.66,3.1708]
[1727368252513,15.24,157.7,157.61,16.5975]
[1727368253013,3.1708,157.67,157.64,3.1711]
[1727368253204,15.24,157.72,157.62,15.24]
[1727368253714,3.1704,157.69,157.62,15.24]
[1727368254215,15.24,157.74,157.64,15.24]
[1727368254414,15.24,157.72,157.62,15.24]
[1727368254817,1.3504,157.71,157.62,15.24]
[1727368255321,1.3504,157.71,157.65,3.171]
[1727368255523,1.3504,157.71,157.62,15.24]
[1727368255816,3.1704,157.69,157.66,3.1707]
[1727368258421,3.1702,157.7,157.67,3.1705]
[1727368259625,3.1703,157.69,157.67,3.1705]
[1727368259823,3.1703,157.69,157.66,3.1708]
[1727368260023,3.1705,157.68,157.66,3.1708]
[1727368260623,3.1702,157.7,157.64,15.24]
[1727368260815,1.3504,157.71,157.64,15.24]
[1727368261017,3.1704,157.69,157.66,3.1707]
[1727368261218,1.3504,157.71,157.66,3.1707]
[1727368261724,1.3504,157.71,157.67,3.1705]
[1727368262020,1.3504,157.71,157.64,15.24]
[1727368262220,1.3064,157.77,157.68,15.24]
[1727368262425,16.5464,157.77,157.68,15.24]
[1727368262619,3.1696,157.73,157.68,15.24]
[1727368262820,3.1696,157.73,157.7,3.1699]
[1727368263128,3.1697,157.72,157.7,3.1699]
[1727368263327,15.24,157.73,157.64,15.24]
[1727368264430,15.24,157.71,157.62,15.24]
[1727368264621,1.3585,157.72,157.64,15.24]
[1727368264929,3.1699,157.71,157.66,15.24]
[1727368265129,15.24,157.76,157.66,15.24]
[1727368265427,3.1696,157.73,157.7,3.1699]
[1727368266229,1.3585,157.77,157.7,15.24]
[1727368266630,3.1691,157.75,157.72,3.1696]
[1727368267031,1.3585,157.77,157.7,15.24]
[1727368267234,3.1692,157.75,157.72,3.1696]
[1727368267433,1.3585,157.77,157.7,15.24]
[1727368267828,3.1689,157.76,157.72,3.1696]
[1727368268029,3.1689,157.76,157.7,15.24]
[1727368268432,1.3585,157.77,157.7,15.24]
[1727368268829,15.24,157.79,157.7,15.24]
[1727368269330,3.1688,157.76,157.73,3.1693]
[1727368269537,1.3066,157.81,157.7,15.24]
[1727368269836,3.1689,157.76,157.72,3.1695]
[1727368270034,15.24,157.78,157.7,15.24]
[1727368270429,15.24,157.78,157.72,3.1695]
[1727368270430,3.1692,157.75,157.72,3.1695]
[1727368270635,15.24,157.78,157.69,17.8978]
[1727368270836,15.24,157.76,157.69,2.6578]
[1727368271134,15.24,157.76,157.67,18.37451655]
[1727368271534,3.1697,157.72,157.67,15.24]
[1727368272125,3.1705,157.68,157.62,2.5032]
[1727368272327,2.5514,157.75,157.62,2.5032]
[1727368272537,15.24,157.7,157.62,2.5032]
[1727368272933,15.24,157.68,157.58,15.24]
[1727368273130,15.24,157.66,157.58,18.42778367]
[1727368273333,3.1709,157.66,157.62,3.1715]
[1727368273531,15.24,157.7,157.61,15.24]
[1727368274232,15.24,157.7,157.65,3.171]
[1727368274233,3.1704,157.69,157.65,3.171]
[1727368274429,15.24,157.7,157.65,3.171]
[1727368274735,3.1707,157.67,157.64,3.1712]
[1727368275033,15.24,157.69,157.58,15.24]
[1727368275234,15.24,157.69,157.59,3.13142943]
[1727368275428,3.171,157.66,157.58,15.24]
[1727368275635,15.24,157.67,157.56,1.2796]